Cogmind - Beta 16 --- EXPLORER MODE // 2025.12.08 @ 09:49:36 Player: K.K.Y. Result: Destroyed by as-78717 with Assembled F-torch Performance ------------- Evolutions (0) 0 Regions Visited (2) 400 Robots Destroyed (17) 85 Value Destroyed (401) 401 Prototype IDs (0) 0 Alien Tech Used (0) 0 Bonus (0) 0 TOTAL SCORE: 886 Bonus ------- None Cogmind --------- Core Integrity 0/250 Matter 300/300 Energy 34/100 System Corruption 0% Temperature Warm (116) Movement Treading (240) Ox1 Location -10/Mines Parts ------- > --- POWER (1) -------- (None) > --- PROPULSION (2) --- Improved Treads > --- UTILITY (3) ------ High-capacity Storage Unit Structural Scanner Machine Analyzer > --- WEAPON (2) ------- (None) > --- INVENTORY (20) --- Improved Treads Improved Hover Unit Improved Hover Unit Improved Terrain Scanner Transport Network Coupler Mining Laser Peak State ------------ > --- POWER ------------ Light Ion Engine > --- PROPULSION ------- Wheel Wheel > --- UTILITY ---------- Machine Analyzer ECM Suite Recalibrator > --- WEAPON ----------- Light EM Pulse Cannon Light EM Pulse Cannon > --- INVENTORY -------- Improved Hover Unit Improved Hover Unit Improved Terrain Scanner Transport Network Coupler Mining Laser [Rating: 15] Favorites ----------- Power Ion Engine Engine Ion Engine Propulsion Improved Treads Treads Improved Treads Wheel Wheel Hover Unit Improved Hover Unit Utility Machine Analyzer Device Structural Scanner Storage High-capacity Storage Unit Processor Machine Analyzer Weapon Light EM Pulse Cannon Energy Gun Small Laser Energy Cannon Light EM Pulse Cannon Build | -11 -10 -10 ------- Run | Yrd Mat Min Slots Evolved 1 | . 1 . Power . | . . . Propulsion . | . . . Utility 1 | . 1 . Weapon . | . . . Parts Attached 19 | 3 16 . Power 2 | 1 1 . Engine 2 | 1 1 . Core . | . . . Reactor . | . . . Propulsion 7 | . 7 . Treads 3 | . 3 . Leg . | . . . Wheel 2 | . 2 . Hover 2 | . 2 . Flight . | . . . Utility 5 | 1 4 . Device 3 | 1 2 . Storage 1 | . 1 . Processor 1 | . 1 . Hackware . | . . . Protection . | . . . Artifact . | . . . Weapon 5 | 1 4 . Energy Gun 1 | 1 . . Energy Cannon 4 | . 4 . Ballistic Gun . | . . . Ballistic Cannon . | . . . Launcher . | . . . Special Weapon . | . . . Impact Weapon . | . . . Slashing Weapon . | . . . Piercing Weapon . | . . . Special Melee Weapon . | . . . Unidentified Prototypes . | . . . Parts Lost 8 | . 5 3 Power 2 | . 1 1 Propulsion 2 | . 2 . Utility . | . . . Weapon 4 | . 2 2 Highest Loss Streak 4 | . 4 3 To Critical Strikes . | . . . Average Backups 4 | 1 4 6 Power . | . . . Propulsion 1 | . 1 3 Utility 1 | 1 2 2 Weapon . | . 1 1 Tool/Special . | . . . Unused Backups 5 | . . 5 Power . | . . . Propulsion 2 | . . 2 Utility 2 | . . 2 Weapon 1 | . . 1 Tool/Special . | . . . Average Slot Usage (%) 80 | . 79 100 Engine 11 | . 11 12 Treads 15 | . 15 25 Wheel 4 | . 5 . Hover 1 | . 1 . Device 9 | . 9 12 Storage 2 | . 2 12 Processor 9 | . 9 12 Energy Cannon 23 | . 23 25 Peak Build Rating 15 | 3 15 15 Average Rating 10 | 2 11 14 On Entrance 6 | . 3 15 Avg Prop Armor Cover (%) . | . . . Naked Turns . | . . . Heaviest Build 54 | 6 54 54 Greatest Support 46 | 3 46 46 Greatest Overweight (x) 4 | 1 4 1 Average Overweight (x) . | . . 1 Largest Inventory Capacity 20 | 5 20 20 Average Capacity 8 | 5 7 20 Most Carried 6 | 4 6 6 Average Carried 4 | 1 4 6 Final Capacity 20 | 5 20 20 Final Carried 6 | 3 6 6 Class Distribution -------------------- 100% | Hacker-Mutant Dominant Class ---------------- Hacker-Mutant | -10/Materials Hacker-Mutant | -10/Mines Resources | -11 -10 -10 ----------- Run | Yrd Mat Min Matter Collected 370 | 101 259 10 Remotely . | . . . Salvage Created 683 | 66 578 39 Parts 40 | 5 35 . Haulers Intercepted 2 | . 2 . Recyclers Shooed 1 | 1 . . Parts Field Recycled . | . . . Retrieved Matter . | . . . Parts Self-Destructed . | . . . Prevented . | . . . Parts Restored . | . . . Kills | -11 -10 -10 ------- Run | Yrd Mat Min Combat Hostiles Destroyed 12 | . 10 2 Cannons 8 | . 6 2 AOE 2 | . 2 . Classes Destroyed 8 | 2 5 1 Builder 2 | . 2 . Tunneler 1 | 1 . . Hauler 2 | . 2 . Recycler 1 | 1 . . Mechanic 1 | . 1 . Swarmer 2 | . 2 . Grunt 8 | . 8 . Assembled 2 | . . 2 Best Kill Streak 3 | 2 3 2 Combat Bots Only 3 | . 3 2 Max Kills in Single Turn 1 | 1 1 1 Gunslinging . | . . . Exploded 1 | . 1 . Melee . | . . . Uniques/NPCs Destroyed . | . . . Combat | -11 -10 -10 -------- Run | Yrd Mat Min Hostile Shots Fired 147 | . 97 50 Missed 49 | . 37 12 Hits 98 | . 60 38 Melee 14 | . . 14 Projectile 84 | . 60 24 Critical Strikes 2 | . . 2 Part Disruptions 1 | . . 1 Damage Taken 924 | . 467 457 Core 256 | . 100 156 Absorbed by Shields . | . . . Ignored by Resistances 564 | . 295 269 Core Remaining (%) 100 | 100 . . Volleys Fired 49 | 11 26 12 Largest 2 | 1 2 2 Hottest 112 | 40 112 112 Shots Fired 73 | 11 45 17 Gun 11 | 11 . . Cannon 62 | . 45 17 Launcher . | . . . Special . | . . . Kinetic . | . . . Thermal 11 | 11 . . Explosive . | . . . Electromagnetic 62 | . 45 17 Robot Hit Streak 23 | 11 23 18 Robot Miss Streak 2 | . 1 2 Penetration Max . | . . . Secondary Targets . | . . . Shots Hit Robots 61 | 11 38 12 Core Hits 28 | 3 18 7 Critical Kills . | . . . Critical Parts Destroyed . | . . . Critical Strikes . | . . . Melee Attacks . | . . . Impact . | . . . Slashing . | . . . Piercing . | . . . Sneak Attacks . | . . . Combat Hostiles . | . . . Follow-up Attacks . | . . . Damage Inflicted 1444 | 115 1085 244 Guns 115 | 115 . . Cannons 1101 | . 857 244 Explosions 228 | . 228 . Melee . | . . . Ramming . | . . . Kinetic . | . . . Thermal 343 | 115 228 . Explosive . | . . . Electromagnetic 1101 | . 857 244 Impact . | . . . Slashing . | . . . Piercing . | . . . Highest Corruption . | . . . Average Corruption . | . . . Corruption Purged . | . . . Corruption Blocked . | . . . Overload Shots . | . . . Overflow Damage 33 | . 19 14 Projectiles 33 | . 19 14 Explosions . | . . . Melee . | . . . Knockbacks . | . . . Impact . | . . . Kinetic . | . . . Secondary . | . . . Self-Inflicted Damage 22 | . 22 . Shots 1 | . 1 . Rammed . | . . . Targets Rammed . | . . . Kicked . | . . . Crushed . | . . . Highest Temperature 224 | . 98 224 Average Temperature 52 | . 32 103 Received Heat Transfer 540 | . 360 180 Siege Activations . | . . . Martial Activations . | . . . Shielding Activations . | . . . Robots Disrupted . | . . . Combat Hostiles . | . . . Robots Corrupted 2 | . 2 . Combat Hostiles 2 | . 2 . Parts Fried . | . . . Impact Corruptions . | . . . Robots Melted . | . . . Combat Hostiles . | . . . Parts Melted . | . . . Heat Transferred 625 | 275 350 . Parts Sabotaged . | . . . Parts Stolen . | . . . Parts Stripped . | . . . Power Chain Reactions 4 | . 4 . Alert | -11 -10 -10 ------- Run | Yrd Mat Min Maximum Alert Level . | . . . Low Security (%) 100 | 100 100 100 Level 1 . | . . . Level 2 . | . . . Level 3 . | . . . Level 4 . | . . . Level 5 . | . . . High Security . | . . . Max Security . | . . . Peak Influence 65 | 10 65 . Initial . | . . . Average 5 | 1 6 . Influence Increases 306 | 10 296 . Destroy 0b10 Robot/C 200 | . 200 . Destroy 0b10 Robot/NC 35 | 10 25 . Destroy Leader 44 | . 44 . Disable Machine 12 | . 12 . Destroy Structure 15 | . 15 . Influence Decreases 306 | 10 296 . Time Decay 257 | 10 247 . Lost Part 49 | . 49 . Squads Dispatched . | . . . Investigation . | . . . Extermination . | . . . Reinforcement . | . . . Assault . | . . . Garrison . | . . . Intercept . | . . . Searches Triggered . | . . . Construction Impeded . | . . . Haulers Reinforced . | . . . Active Scanning Responses . | . . . Cargo Convoy Interrupts . | . . . Stealth | -11 -10 -10 --------- Run | Yrd Mat Min Distress Signals 2 | . 2 . Communications Jammed . | . . . Distress Signals . | . . . Times Spotted 37 | . 21 16 Peak Tracking Total 14 | . 4 14 Tactical Retreats 2 | . 1 1 ECM-based Alert Blocks 2 | . 2 . Traps | -11 -10 -10 ------- Run | Yrd Mat Min Traps Triggered 1 | . 1 . Indirectly . | . . . Trap Hack Attempts . | . . . Triggered . | . . . Disarmed . | . . . Reprogrammed . | . . . Reused . | . . . Traps Extracted . | . . . Installed . | . . . Triggered . | . . . Machines | -11 -10 -10 ---------- Run | Yrd Mat Min Machines Disabled 3 | . 3 . Max in Single Turn 1 | . 1 . Machines Repaired . | . . . Machines Dismantled . | . . . Machines Sabotaged . | . . . Overloaded Fab Kills . | . . . Hacking | -11 -10 -10 --------- Run | Yrd Mat Min Machines Accessed . | . . . Terminals . | . . . Fabricators . | . . . Repair Stations . | . . . Recycling Units . | . . . Scanalyzers . | . . . Garrison Access . | . . . Total Hacks . | . . . Successful . | . . . Failed . | . . . Catastrophic . | . . . Database Lockouts . | . . . Manual . | . . . Terminals . | . . . Fabricators . | . . . Repair Stations . | . . . Recycling Units . | . . . Scanalyzers . | . . . Garrison Access . | . . . Terminal Hacks . | . . . Fabricator Hacks . | . . . Repair Station Hacks . | . . . Recycling Unit Hacks . | . . . Scanalyzer . | . . . Garrison Access Hacks . | . . . Unauthorized Hacks . | . . . Terminals . | . . . Fabricators . | . . . Repair Stations . | . . . Recycling Units . | . . . Scanalyzers . | . . . Garrison Access . | . . . Data Cores Recovered . | . . . Used . | . . . Hacking Detections . | . . . Full Trace Events . | . . . Feedback Events . | . . . Feedback Blocked . | . . . Robot Schematics Acquired . | . . . Robots Built . | . . . Authchips . | . . . Time . | . . . Total Robot Build Rating . | . . . Part Schematics Acquired . | . . . Parts Built . | . . . Authchips . | . . . Time . | . . . Total Part Build Rating . | . . . Part Studies Acquired . | . . . Parts Repaired . | . . . Time . | . . . Parts Recycled . | . . . Recycled Matter . | . . . Retrieved Matter . | . . . Retrieved Components . | . . . Parts Scanalyzed . | . . . Part Schematics Acquired . | . . . Parts Damaged . | . . . Bothacking | -11 -10 -10 ------------ Run | Yrd Mat Min Used RIF Installer . | . . . Robots Hacked . | . . . Non-combat . | . . . Combat . | . . . Robot Hacks Applied . | . . . Relay Couplers Released . | . . . Fabnet Peak Effective % . | . . . Robots Rewired . | . . . Allies Hacked . | . . . Hacks Repelled . | . . . Allies | -11 -10 -10 -------- Run | Yrd Mat Min Total Allies . | . . . Largest Group . | . . . Highest-Rated Group . | . . . Highest-Rated Ally . | . . . Total Orders . | . . . Ally Attacks . | . . . Total Damage . | . . . Kills . | . . . Allies Corrupted . | . . . Allies Melted . | . . . Intel | -11 -10 -10 ------- Run | Yrd Mat Min Active Infowar (turns) 1345 | 54 1218 73 Structural 714 | . 641 73 Machine Analysis 1024 | . 951 73 ECM 329 | 54 275 . Robot Analysis Total . | . . . Derelict Logs Recovered . | . . . Drone Launches . | . . . Drone Recoveries . | . . . Exploration | -11 -10 -10 ------------- Run | Yrd Mat Min Turns Passed 1365 | 69 1223 73 Spaces Moved 737 | 49 671 17 Core 116 | 49 67 . Treads 403 | . 386 17 Legs . | . . . Wheels 204 | . 204 . Hover 14 | . 14 . Flight . | . . . Fastest Speed 50 | 50 56 240 Average Speed 138 | 78 140 240 Slowest Speed 250 | 100 250 240 Overloaded Moves . | . . . Propulsion Burnouts . | . . . Robots Hopped . | . . . Potential Cave-ins . | . . . Cave-ins Triggered . | . . . Exploration Rate (%) 36 | 3 98 7 Regions Visited 2 Branch Regions 1 Pre-discovered Areas . | . . . Known Exits Taken 2 | 1 1 . Unknown Exits Taken . | . . . Scrap Searched . | . . . Spaces Dug . | . . . Terrain Destroyed 14 | . 14 . Melee . | . . . Projectile . | . . . AOE 14 | . 14 . Terrain Rammed . | . . . Walls Destroyed . | . . . Machines Disabled . | . . . Actions | -11 -10 -10 --------- Run | Yrd Mat Min Total 1002 | 68 902 32 Wait 182 | . 179 3 Move 735 | 48 670 17 Hop . | . . . Pick Up 11 | 6 5 . Fast Attach 13 | . 13 . Attach 5 | 3 2 . Detach . | . . . Swap 1 | . 1 . Drop 6 | . 6 . Fire 49 | 11 26 12 Melee . | . . . Ram . | . . . Kick . | . . . Crush . | . . . Escape Stasis . | . . . Rewire . | . . . Trap . | . . . Miscellaneous . | . . . Route ------- -11/Scrapyard -10/Materials (discovered 5 exits: *Mat x3 / *Min x2) -10/Mines History --------- Turn | Location | Event 4 | -11/Scrapyard | Identified exit to Materials 4 | -11/Scrapyard | Discovered exit to Materials (range 15) 70 | -11/Scrapyard | Entered Materials 70 | -10/Materials | Evolved 1 slot: Utility x1 97 | -10/Materials | Identified exit to Mines 97 | -10/Materials | Discovered exit to Mines (range 5) 263 | -10/Materials | Lost 4 parts (2n2w) 321 | -10/Materials | Build established: Hacker-Mutant 492 | -10/Materials | Identified exit to Materials 492 | -10/Materials | Discovered exit to Materials (range 3) 756 | -10/Materials | Discovered exit to Mines (range 10) 901 | -10/Materials | Discovered exit to Materials (range 14) 1025 | -10/Materials | Discovered exit to Materials (range 5) 1293 | -10/Materials | Entered Mines 1294 | -10/Mines | Assembled infested the area 1299 | -10/Mines | Assisted by a Guerilla fighting off Assembled 1334 | -10/Mines | Core integrity fell below 50% 1365 | -10/Mines | Core integrity fell below 20% 1366 | -10/Mines | Destroyed by as-78717 with Assembled F-torch Last Messages --------------- 01345_ K-01 Serf destroyed. 01347_ as-14347 knocked back. 01349_ HV Slug penetrates as-04239. 01349_ HV Slug penetrates Wall. 01351_ HV Slug penetrates as-49311. 01351_ as-49311 suffers critical hit (Destroy). 01351_ as-49311 destroyed. 01351_ HV Slug penetrates Wall. 01351_ as-14347 suffers critical hit (Destroy). 01353_ HV Slug penetrates as-04239. 01353_ as-04239 suffers critical hit (Destroy). 01353_ as-04239 destroyed. 01353_ as-52682 destroyed. 01353_ ZP-ZV7(h) destroyed. 01360_ Lgt. EM Pulse Cannon destroyed. 01363_ Destroyed Asb. Hover Unit. 01364_ Imp. Treads severed. 01365_ Lgt. EM Pulse Cannon destroyed. 01366_ as-88307 misfires. 01366_ Ion Engine destroyed. Map ----- +----------------------------------------------------+ | ?????????????????????????????????????????????????? | | ?????????????????????????????????????????????????? | | ?????????????????????????????????????????????????? | | ?????????????????????????????????????????????????? | | ?????????????????????????????????????????????????? | | ?????????????????????????????????????????????????? | | ?????????????????????????????????????????????????? | | ?????????????????????????????????????????????????? | | ?????????????????????????????????????????????????? | | ?????????????????????????????????????????????????? | | ?????????????????????????????????????????????????? | | ?????????????????????????????????????????????????? | | ?????????????????????????????????????????????????? | | ?????????????????????????????????????????????????? | | ?????????????????????????????????????????????????? | | ?????????????????????????????????????????????????? | | ?????????????????????????????????????????????????? | | ?????????????????????????????????????????????????? | | ????????? ###############????????????????????????? | | ?????? ###############????????????????????????? | | ?????? % %##????????????????????????? | | ?????? %! %#####?????????????????????? | | ????????????##########%;####?????????????????????? | | ???????????? ## *%a a ##?????????????????????? | | ?????????????? # """ "aaaa##?????????????????????? | | ?????????????? # """ ""*a@##?????????????????????? | | ??????????????## """ " "]!##?????????????????????? | | ??????????????## !=##?????????????????????? | | ??????????????## """ ##?????????????????????? | | ??????????????## """ ##?????????????????????? | | ??????????????## """ ##?????????????????????? | | ??????????????## ##?????????????????????? | | ??????????????##############?????????????????????? | | ??????????????##############?????????????????????? | | ?????????????????????????????????????????????????? | | ?????????????????????????????????????????????????? | | | | | | | | | | | | | | | | | | | | | | | | | | | | | +----------------------------------------------------+ Best States ------------- Heat Dissipation 25 Energy Generation 10 Energy Capacity 250 Matter Stores 300 Matter Capacity 300 Sight Range 16 Terrain Scan Density 10 ECM Strength 1 Resistance: KI 35 Resistance: TH 35 Resistance: EX 35 Resistance: EM 35 Resistance: I 35 Resistance: S 35 Resistance: P 35 Evasion (%) 50 Recoil Reduction 2 Offensive Hacking 20 Item Schematics ----------------- None Robot Schematics ------------------ None Fabricated ------------ Nothing Repaired ---------- Nothing Studied --------- None Alien Tech Used ----------------- None Achievements -------------- None Challenges ------------ None Game ------ Seed FissionTerrabombShotgun Manual? 0 Play Time 00:09:15 Cumulative 174.6 hours Start 2025.12.08 @ 09:41:38 End 2025.12.08 @ 09:49:36 Sessions 1 Manual Loads 0 Difficulty Explorer Special Mode None Game No. 240 Rogue 0 Adventurer 0 Explorer 240 Win Type - Total 0 Types 0/0/0/0/0/0/0/0/0/0 Lore% 70 Gallery% 67 Achievement% 53 Wizard Run 0 Options --------- Layout 1 ASCII 0 Keyboard 0 Movement Mouse Keybinds 0 Fullscreen 1 Font 24/Smallcaps Map View 50x35 Zoom Use 0% Tactical HUD 1 Map Filters NONE Filters NONE Steam 1 RUN: 2ddcb0a4-1af2-46d8-8f98-6b699c7dbc03